[Event "XTX Markets LCC Super Blitz-S2 2024"]
[Site "London"]
[Date "2024.12.07"]
[Round "5.2"]
[White "Stefansson, Vignir Vatnar"]
[Black "Vitiugov, Nikita"]
[Result "0-1"]
[Annotator "ChessBase"]
[ECO "E06"]
[WhiteElo "2537"]
[BlackElo "2668"]
[PlyCount "122"]
[EventDate "2024.11.28"]
[EventType "tourn"]
[EventCountry "ENG"]
[SourceTitle "playchess.com"]
[Source "ChessBase"]
[SourceQuality "1"]
[TimeControl "180+2"]

1. d4 {[%emt 0:00:00]} Nf6 {[%emt 0:00:01]} 2. c4 {[%emt 0:00:01]} e6 {[%emt 0:00:01]} 3. g3 {[%emt 0:00:01]} d5 {[%emt 0:00:04]} 4. Bg2 {[%emt 0:00:01]} Be7 {[%emt 0:00:01]} 5. Nf3 {[%emt 0:00:01]} O-O {[%emt 0:00:01]} 6. Nc3 {[%emt 0:00:01]} c6 {[%emt 0:00:06]} 7. Qd3 {[%emt 0:00:11]} b6 {[%emt 0:00:06]} 8. Ne5 {[%emt 0:00:02]} a5 {[%emt 0:00:14]} 9. O-O {[%emt 0:00:20]} Ba6 {[%emt 0:00:01]} 10. b3 {[%emt 0:00:00]} Nfd7 {[%emt 0:00:05]} 11. Nf3 {[%emt 0:00:09]} Nf6 {[%emt 0:00:17]} 12. Rd1 {[%emt 0:00:22]} Nbd7 {[%emt 0:00:04]} 13. e4 {[%emt 0:00:01]} Rc8 {[%emt 0:00:19]} 14. e5 {[%emt 0:00:02]} Ne8 {[%emt 0:00:01]} 15. a4 {[%emt 0:00:01]} Nc7 {[%emt 0:00:06]} 16. h4 {[%emt 0:00:02]} h6 {[%emt 0:00:02]} 17. Bd2 {[%emt 0:00:46]} Bb4 {[%emt 0:00:04]} 18. Rac1 {[%emt 0:00:07]} Qe7 {[%emt 0:00:01]} 19. Bf1 {[%emt 0:00:12]} c5 {[%emt 0:00:08]} 20. Nb5 {[%emt 0:00:02]} Nxb5 {[%emt 0:00:06]} 21. cxb5 {[%emt 0:00:19]} Bxd2 {[%emt 0:00:07]} 22. Qxd2 {[%emt 0:00:06]} Bb7 {[%emt 0:00:01]} 23. Bd3 {[%emt 0:00:05]} cxd4 {[%emt 0:00:09]} 24. Bb1 {[%emt 0:00:09]} Rc5 {[%emt 0:00:35]} 25. Qd3 {[%emt 0:00:04]} f5 {[%emt 0:00:08]} 26. Nxd4 {[%emt 0:00:11]} Rfc8 {[%emt 0:00:05]} 27. Qe3 {[%emt 0:00:19]} R8c7 {[%emt 0:00:42]} 28. Rc2 {[%emt 0:00:01]} Rxc2 29. Bxc2 {[%emt 0:00:01]} Nc5 {[%emt 0:00:08]} 30. f3 {[%emt 0:00:02]} Nd7 {[%emt 0:00:03]} 31. Rd2 {[%emt 0:00:05]} Rc5 {[%emt 0:00:01]} 32. h5 {[%emt 0:00:04]} Nf8 {[%emt 0:00:01]} 33. g4 {[%emt 0:00:02]} fxg4 {[%emt 0:00:09]} 34. fxg4 {[%emt 0:00:00]} Qh4 {[%emt 0:00:02]} 35. Rg2 {[%emt 0:00:05]} Rc7 {[%emt 0:00:04]} 36. Qg3 {[%emt 0:00:13]} Qg5 {[%emt 0:00:04]} 37. Rf2 {[%emt 0:00:03]} Bc8 {[%emt 0:00:04]} 38. Qf3 {[%emt 0:00:01]} Qd8 {[%emt 0:00:01]} 39. Nc6 {[%emt 0:00:01]} Qe8 {[%emt 0:00:01]} 40. Qd3 {[%emt 0:00:01]} Rf7 {[%emt 0:00:02]} 41. Qe3 {[%emt 0:00:03]} Rxf2 42. Kxf2 {[%emt 0:00:01]} Nd7 {[%emt 0:00:05]} 43. Qd3 {[%emt 0:00:01]} Nf8 {[%emt 0:00:01]} 44. Kg2 {[%emt 0:00:04]} Bb7 {[%emt 0:00:02]} 45. Nd4 {[%emt 0:00:01]} Bc8 {[%emt 0:00:01]} 46. Qe3 {[%emt 0:00:01]} Bd7 {[%emt 0:00:02]} 47. Ne2 {[%emt 0:00:02]} Qd8 {[%emt 0:00:02]} 48. Nf4 {[%emt 0:00:02]} Qh4 {[%emt 0:00:04]} 49. Qg3 {[%emt 0:00:03]} Qg5 {[%emt 0:00:01]} 50. Ne2 {[%emt 0:00:05]} Qd2 {[%emt 0:00:02]} 51. Qd3 {[%emt 0:00:00]} Qg5 {[%emt 0:00:01]} 52. Kg3 {[%emt 0:00:02]} Be8 {[%emt 0:00:04]} 53. Nf4 {[%emt 0:00:01]} Qxe5 {[%emt 0:00:02]} 54. Kf3 {[%emt 0:00:05]} Bf7 {[%emt 0:00:03]} 55. Qe3 {[%emt 0:00:03]} Qc7 {[%emt 0:00:02]} 56. Qd2 {[%emt 0:00:02]} e5 {[%emt 0:00:03]} 57. Nxd5 {[%emt 0:00:01]} Qd8 {[%emt 0:00:01]} 58. Be4 {[%emt 0:00:01]} Ne6 {[%emt 0:00:01]} 59. Kg3 {[%emt 0:00:04]} Nc5 {[%emt 0:00:02]} 60. Bg2 {[%emt 0:00:03]} e4 {[%emt 0:00:01]} 61. Qf4 {[%emt 0:00:05]} Qxd5 {[%emt 0:00:02]} 0-1

[Event "XTX Markets LCC Super Blitz-S2 2024"]
[Site "London"]
[Date "2024.12.07"]
[Round "5.3"]
[White "Jones, Gawain C B"]
[Black "Smirin, Ilia"]
[Result "1-0"]
[Annotator "ChessBase"]
[ECO "A49"]
[WhiteElo "2639"]
[BlackElo "2574"]
[PlyCount "66"]
[EventDate "2024.11.28"]
[EventType "tourn"]
[EventCountry "ENG"]
[SourceTitle "playchess.com"]
[Source "ChessBase"]
[SourceQuality "1"]
[TimeControl "180+2"]

1. Nf3 {[%emt 0:00:01]} Nf6 {[%emt 0:00:01]} 2. g3 {[%emt 0:00:01]} g6 {[%emt 0:03:05]} 3. b3 {[%emt 0:00:03]} d6 {[%emt 0:00:00]} 4. d4 {[%emt 0:00:01]} Bg7 {[%emt 0:00:00]} 5. Bb2 {[%emt 0:00:01]} O-O {[%emt 0:00:00]} 6. Bg2 {[%emt 0:00:01]} c5 {[%emt 0:00:00]} 7. O-O {[%emt 0:00:11]} cxd4 {[%emt 0:00:00]} 8. Nxd4 {[%emt 0:00:01]} d5 {[%emt 0:00:00]} 9. c4 {[%emt 0:00:11]} e5 {[%emt 0:00:00]} 10. Nf3 {[%emt 0:00:14]} e4 {[%emt 0:00:00]} 11. Nd4 {[%emt 0:00:03]} dxc4 {[%emt 0:00:00]} 12. bxc4 {[%emt 0:00:02]} e3 {[%emt 0:00:00]} 13. fxe3 {[%emt 0:00:06]} Ng4 {[%emt 0:00:00]} 14. Qb3 {[%emt 0:00:05]} Qe7 {[%emt 0:00:00]} 15. Rf3 {[%emt 0:00:28]} Nc6 {[%emt 0:00:00]} 16. Nxc6 bxc6 {[%emt 0:00:00]} 17. Bxg7 {[%emt 0:00:10]} Kxg7 {[%emt 0:00:00]} 18. Qc3+ {[%emt 0:00:05]} Kg8 {[%emt 0:00:00]} 19. Nd2 {[%emt 0:00:02]} Re8 {[%emt 0:00:00]} 20. Raf1 {[%emt 0:00:08]} f6 {[%emt 0:00:00]} 21. Rf4 {[%emt 0:00:30]} Qxe3+ {[%emt 0:00:00]} 22. Qxe3 Nxe3 {[%emt 0:00:00]} 23. Bxc6 {[%emt 0:00:04]} Nxf1 {[%emt 0:00:04]} 24. Kxf1 {[%emt 0:00:04]} Bh3+ {[%emt 0:00:18]} 25. Kf2 {[%emt 0:00:04]} Kg7 {[%emt 0:00:07]} 26. Bxa8 {[%emt 0:00:13]} Rxa8 {[%emt 0:00:01]} 27. g4 {[%emt 0:00:11]} h5 {[%emt 0:00:06]} 28. gxh5 {[%emt 0:00:02]} gxh5 {[%emt 0:00:01]} 29. Ne4 {[%emt 0:00:04]} Rf8 {[%emt 0:00:09]} 30. c5 {[%emt 0:00:15]} Be6 {[%emt 0:00:02]} 31. Nd6 {[%emt 0:00:03]} Bxa2 {[%emt 0:00:07]} 32. c6 {[%emt 0:00:03]} Be6 {[%emt 0:00:02]} 33. Re4 {[%emt 0:00:01]} Bh3 {[%emt 0:00:05]} 1-0

[Event "XTX Markets LCC Super Blitz-S2 2024"]
[Site "London"]
[Date "2024.12.07"]
[Round "5.4"]
[White "Firouzja, Alireza"]
[Black "Vidit, Santosh Gujrathi"]
[Result "1-0"]
[Annotator "TA"]
[ECO "D04"]
[WhiteElo "2763"]
[BlackElo "2727"]
[PlyCount "83"]
[EventDate "2024.11.28"]
[EventType "tourn"]
[EventCountry "ENG"]
[SourceTitle "playchess.com"]
[Source "ChessBase"]
[SourceQuality "1"]
[TimeControl "180+2"]

{[%evp 14,83,0,0,-6,0,25,1,14,20,29,5,45,36,56,61,65,56,57,50,67,53,50,14,52,0,0,-10,9,8,13,7,41,40,40,37,42,47,47,34,53,29,35,-14,-13,-39,0,0,0,0,0,0,0,0,0,0,99,86,108,10,29980,29981,29997,956,890,870,29987,29988,29988,29989,29989,29990]} 1. Nf3 {[%emt 0:00:00]} d5 2. b3 c5 {[%emt 0:00:02]} 3. e3 {[%emt 0:00:02]} Nf6 {[%emt 0:00:01]} 4. Bb2 {[%emt 0:00:01]} g6 {[%emt 0:00:01]} 5. Be2 {[%emt 0:00:06]} Bg7 {[%emt 0:00:01]} 6. O-O {[%emt 0:00:02]} O-O {[%emt 0:00:02]} 7. d4 {[%emt 0:00:06]} Ne4 {[%emt 0:00:06]} 8. Nbd2 {[%emt 0:00:06]} Nc6 {[%emt 0:00:05]} 9. c3 {[%emt 0:00:05]} cxd4 {[%emt 0:00:35]} 10. cxd4 {[%emt 0:00:03]} Bf5 {[%emt 0:00:02] The position is equal.} 11. Rc1 {[%emt 0:00:14]} Rc8 {[%emt 0:00:06]} 12. a3 {[%emt 0:00:06]} Qb6 {[%emt 0:00:10]} 13. b4 {[%emt 0:00:07]} Rfd8 {[%emt 0:00:06]} 14. Nxe4 {[%emt 0:00:25]} Bxe4 {[%emt 0:00:13]} 15. Nd2 {[%emt 0:00:01]} Bf5 {[%emt 0:00:04]} 16. Nb3 {[%emt 0:00:01]} a6 {[%emt 0:00:09]} 17. Qd2 {[%emt 0:00:04]} Na7 {[%emt 0:00:02][%cal Bc6a7,Ba7b5,Bb5d6,Bd6e4][%mdl 32]} 18. Rc5 {[%emt 0:00:14]} Nb5 {[%emt 0:00:03]} 19. Rfc1 {[%emt 0:00:02]} (19. Bf3 $1 $14) 19... Nd6 $11 {[%emt 0:00:06]} 20. Qe1 {[%emt 0:00:44]} (20. Rxd5 $2 Be6 21. Rxc8 Rxc8 22. Rxd6 exd6 $19) 20... Ne4 {[%emt 0:00:24]} 21. Rxc8 {[%emt 0:00:04]} Rxc8 {[%emt 0:00:03]} 22. Nc5 {[%emt 0:00:12]} Nd6 {[%emt 0:00:33]} 23. g4 {[%emt 0:00:07]} Be6 {[%emt 0:00:12]} 24. Nxe6 {[%emt 0:00:06]} Rxc1 {[%emt 0:00:06]} 25. Qxc1 {[%emt 0:00:01]} fxe6 {[%emt 0:00:01]} 26. Bd3 {[%emt 0:00:21]} Qd8 {[%emt 0:00:06]} 27. Kg2 {[%emt 0:00:06]} Qd7 {[%emt 0:00:02][%cal Oe6e5]} 28. Qc2 {[%emt 0:00:08] [#]} (28. Be2 $14) 28... e5 $1 {[%emt 0:00:06]} 29. h3 {[%emt 0:00:11]} (29. Be2 e4) 29... exd4 {[%emt 0:00:14]} 30. Bxd4 {[%emt 0:00:01]} Bxd4 {[%emt 0:00:06]} 31. exd4 $15 {[%emt 0:00:00][%mdl 4096] Endgame. KQB-KQN} b5 {[%emt 0:00:04]} 32. Qe2 {[%emt 0:00:03]} Nc4 {[%emt 0:00:03]} 33. h4 {[%emt 0:00:06]} Nxa3 {[%emt 0:00:14]} 34. h5 {[%emt 0:00:00]} gxh5 {[%emt 0:00:00] [#]} (34... Kf7 $11) 35. Bf5 $1 $16 {[%emt 0:00:07] White is more active.} Qd6 {[%emt 0:00:00] [#]} 36. g5 {[%emt 0:00:00] Dodges Qf6} (36. Qe3 $1 $16 {[%cal Re3g5] And now Qg5+ would win.} Nc4 37. Be6+ Kf8 (37... Kh8 $2 38. Qh6 $18) 38. Qh6+ Ke8 39. Qxh5+ (39. gxh5 Nd2 $11) 39... Kd8 40. Qxd5 (40. Bxd5 Qf4 $11) 40... Qxd5+ 41. Bxd5) 36... Nc4 $2 {[%emt 0:00:02][%mdl 8192] Black cannot hold the game after this.} (36... e6 $11 37. Qxe6+ (37. Bxe6+ Kg7 $14) 37... Qxe6 38. Bxe6+ Kf8) 37. Qxh5 {[%emt 0:00:02]} Qf4 {[%emt 0:00:03]} 38. Bxh7+ {[%emt 0:00:06]} (38. Qxh7+ $142 Kf8 39. Qh8+ Kf7 40. g6#) 38... Kf8 $18 {[%emt 0:00:01]} 39. Bg6 {[%emt 0:00:00][%cal Rh5h8]} e6 {[%emt 0:00:02]} 40. Qh8+ {[%emt 0:00:03] White mates.} Ke7 {[%emt 0:00:01]} 41. Qe8+ {[%emt 0:00:01]} Kd6 {[%emt 0:00:01]} 42. Qb8+ {[%emt 0:00:01] Weighted Error Value: White=0.16 (very precise) /Black=0.61.  Loses game:     	---       	Black=1      Mistake:       	White=3     	Black=1      Inaccurate:     	White=2     	Black=4      OK:         	White=13    	Black=12     Best:        	White=1     	---        Strong:       	White=1     	---} 1-0

[Event "XTX Markets LCC Super Blitz-S2 2024"]
[Site "London"]
[Date "2024.12.07"]
[Round "6.1"]
[White "Vachier-Lagrave, Maxime"]
[Black "Vidit, Santosh Gujrathi"]
[Result "0-1"]
[Annotator "TA"]
[ECO "B84"]
[WhiteElo "2731"]
[BlackElo "2727"]
[PlyCount "76"]
[EventDate "2024.11.28"]
[EventType "tourn"]
[EventCountry "ENG"]
[SourceTitle "playchess.com"]
[Source "ChessBase"]
[SourceQuality "1"]
[TimeControl "180+2"]

{[%evp 15,76,25,12,-12,-17,-8,0,-16,-8,-13,9,-16,36,25,13,0,25,21,0,-25,-11,-33,-21,-32,-20,-37,-52,-59,-43,-63,-84,-107,-55,-166,-161,-166,-142,-141,-137,-368,-354,-345,-359,-346,-335,-334,-295,-352,-371,-358,-356,-358,-351,-385,-392,-440,-437,-516,-513,-616,-594,-596,-596]} 1. e4 {[%emt 0:00:01]} c5 {[%emt 0:00:00]} 2. Nf3 {[%emt 0:00:01]} d6 {[%emt 0:00:01]} 3. d4 {[%emt 0:00:02]} cxd4 {[%emt 0:00:01]} 4. Nxd4 {[%emt 0:00:00]} Nf6 {[%emt 0:00:01]} 5. Nc3 {[%emt 0:00:01]} a6 {[%emt 0:00:01]} 6. Be3 {[%emt 0:00:02]} e6 {[%emt 0:00:03]} 7. Be2 {[%emt 0:00:02]} Nbd7 {[%emt 0:00:04]} 8. f4 {[%emt 0:00:05]} b5 {[%emt 0:00:14]} 9. a3 {[%emt 0:00:01]} Bb7 {[%emt 0:00:03]} 10. Bf3 {[%emt 0:00:02]} Rc8 {[%emt 0:00:18]} 11. O-O {[%emt 0:00:19] The position is equal.} Qc7 {[%emt 0:00:08]} 12. Qe1 {[%emt 0:00:07]} h5 {[%emt 0:00:07]} 13. h3 {[%emt 0:00:10]} h4 {[%emt 0:00:09]} (13... e5 $11) 14. Rd1 {[%emt 0:00:06]} Be7 {[%emt 0:00:30]} 15. Qe2 {[%emt 0:00:10]} Qc4 {[%emt 0:00:14]} 16. Qf2 {[%emt 0:00:20][%cal Oe4e5] And now e5! would win.} Qc7 {[%emt 0:00:18]} 17. Nde2 {[%emt 0:00:05]} Nc5 {[%emt 0:00:19]} 18. e5 {[%emt 0:00:02]} dxe5 {[%emt 0:00:29]} 19. fxe5 {[%emt 0:00:01]} Qxe5 {[%emt 0:00:02]} 20. Bf4 {[%emt 0:00:20]} Qf5 {[%emt 0:00:01]} 21. Nd4 {[%emt 0:00:05]} Qg6 {[%emt 0:00:04]} (21... Qxf4 22. Bc6+ Rxc6 23. Qxf4 $16) 22. Bxb7 {[%emt 0:00:08]} Nxb7 {[%emt 0:00:01]} 23. Nf3 {[%emt 0:00:02][%cal Og1h1]} Nh5 {[%emt 0:00:11]} ({Black should play} 23... Ne4 $17 24. Qe2 (24. Nxe4 Qxe4 25. Nd4 O-O $17) 24... Nxc3 25. bxc3 Nc5 (25... Rxc3 $2 {is the wrong capture.} 26. Qd2 $18) (25... Bxa3 26. Ra1 $15)) 24. Ne5 {[%emt 0:00:22]} (24. Be5 $1 $15 Ng3 25. Rfe1) 24... Qf5 $19 {[%emt 0:00:05]} 25. Be3 {[%emt 0:00:06]} Qxf2+ {[%emt 0:00:09]} ({Stronger than} 25... Qxe5 26. Qxf7#) 26. Rxf2 {[%emt 0:00:01]} Nf6 {[%emt 0:00:05]} 27. Bg5 $2 {[%emt 0:00:09] [#] This move loses the game for White.} (27. Rfd2 $17) 27... Bc5 {[%emt 0:00:03]} 28. Nf3 {[%emt 0:00:05]} Bxf2+ {[%emt 0:00:01]} 29. Kxf2 {[%emt 0:00:01]} Nc5 {[%emt 0:00:07]} 30. Ke3 {[%emt 0:00:02] Repels Nce4} Ncd7 {[%emt 0:00:05]} 31. Bxh4 {[%emt 0:00:03]} Nb6 {[%emt 0:00:01] Hoping for ...Nc4+.} 32. Kd2 {[%emt 0:00:07]} Nc4+ {[%emt 0:00:01]} 33. Kc1 {[%emt 0:00:01] [#]} Nxa3 $1 {[%emt 0:00:05][%mdl 512]} 34. Rd4 {[%emt 0:00:13]} (34. Rd6 Nxc2) 34... Nc4 {[%emt 0:00:03]} 35. Bxf6 gxf6 {[%emt 0:00:02] Black is clearly winning.} 36. Ne4 {[%emt 0:00:04]} Ke7 {[%emt 0:00:01]} 37. Rd1 {[%emt 0:00:07]} Ne3 {[%emt 0:00:03][%csl LRc2,LRd1,LRg2]} 38. Rd2 {[%emt 0:00:01]} Rhd8 {[%emt 0:00:01] Weighted Error Value: White=0.30/Black=0.12 (very precise) .  Loses game:     	White=1     	---        Mistake:       	White=1     	Black=2      OK:         	White=9     	Black=14     Best:        	White=2     	---} 0-1

[Event "XTX Markets LCC Super Blitz-S2 2024"]
[Site "London"]
[Date "2024.12.07"]
[Round "6.2"]
[White "Smirin, Ilia"]
[Black "Firouzja, Alireza"]
[Result "0-1"]
[Annotator "ChessBase"]
[ECO "B15"]
[WhiteElo "2574"]
[BlackElo "2763"]
[PlyCount "74"]
[EventDate "2024.11.28"]
[EventType "tourn"]
[EventCountry "ENG"]
[SourceTitle "playchess.com"]
[Source "ChessBase"]
[SourceQuality "1"]
[TimeControl "180+2"]

1. e4 {[%emt 0:00:01]} c6 {[%emt 0:00:01]} 2. d4 {[%emt 0:00:03]} d5 {[%emt 0:00:02]} 3. Nd2 {[%emt 0:00:02]} dxe4 {[%emt 0:00:05]} 4. Nxe4 {[%emt 0:00:01]} Nf6 {[%emt 0:00:01]} 5. Nxf6+ {[%emt 0:00:03]} exf6 {[%emt 0:00:02]} 6. Bd3 {[%emt 0:00:04]} Qxd4 {[%emt 0:00:07]} 7. Nf3 {[%emt 0:00:02]} Qd8 {[%emt 0:00:09]} 8. O-O {[%emt 0:00:02]} Be7 {[%emt 0:00:00]} 9. Qe2 {[%emt 0:00:28]} O-O {[%emt 0:00:05]} 10. Rd1 {[%emt 0:00:01]} Nd7 {[%emt 0:00:13]} 11. Bf4 {[%emt 0:00:07]} Re8 {[%emt 0:00:07]} 12. Bf5 {[%emt 0:00:20]} g6 {[%emt 0:00:22]} 13. Nd4 {[%emt 0:00:46]} Qb6 {[%emt 0:01:20]} 14. Be3 {[%emt 0:00:40]} Bc5 {[%emt 0:00:15]} 15. Bxd7 {[%emt 0:00:28]} Bxd7 {[%emt 0:00:02]} 16. Qc4 {[%emt 0:00:07]} Bg4 {[%emt 0:00:09]} 17. Rd3 {[%emt 0:00:13]} Qxb2 {[%emt 0:00:09]} 18. Rf1 {[%emt 0:00:04]} Qb4 {[%emt 0:00:01]} 19. Qxb4 {[%emt 0:00:08]} Bxb4 20. Rb3 {[%emt 0:00:00]} c5 {[%emt 0:00:03]} 21. Nb5 {[%emt 0:00:00]} Be2 {[%emt 0:00:01]} 22. Nc7 {[%emt 0:00:02]} Bxf1 {[%emt 0:00:03]} 23. Kxf1 {[%emt 0:00:02]} b6 {[%emt 0:00:14]} 24. a3 {[%emt 0:00:03]} Ba5 {[%emt 0:00:02]} 25. g3 {[%emt 0:00:02]} Rxe3 26. Rxe3 {[%emt 0:00:02]} Rd8 {[%emt 0:00:06]} 27. c4 {[%emt 0:00:02]} Kf8 {[%emt 0:00:06]} 28. Nd5 {[%emt 0:00:02]} f5 {[%emt 0:00:02]} 29. Rb3 {[%emt 0:00:02]} Rd6 {[%emt 0:00:05]} 30. Ke2 {[%emt 0:00:01]} Re6+ {[%emt 0:00:01]} 31. Kd3 {[%emt 0:00:02]} Re4 {[%emt 0:00:01]} 32. Ne3 {[%emt 0:00:02]} Rd4+ {[%emt 0:00:02]} 33. Ke2 {[%emt 0:00:01]} Rd2+ {[%emt 0:00:04]} 34. Kf3 {[%emt 0:00:01]} Kg7 {[%emt 0:00:02]} 35. Nd5 {[%emt 0:00:01]} Rd4 {[%emt 0:00:00]} 36. Ne3 {[%emt 0:00:01]} Bd2 {[%emt 0:00:01]} 37. Nc2 {[%emt 0:00:01]} Rxc4 {[%emt 0:00:01]} 0-1

[Event "XTX Markets LCC Super Blitz-S2 2024"]
[Site "London"]
[Date "2024.12.07"]
[Round "6.3"]
[White "Vitiugov, Nikita"]
[Black "Jones, Gawain C B"]
[Result "1-0"]
[Annotator "ChessBase"]
[ECO "D00"]
[WhiteElo "2668"]
[BlackElo "2639"]
[PlyCount "149"]
[EventDate "2024.11.28"]
[EventType "tourn"]
[EventCountry "ENG"]
[SourceTitle "playchess.com"]
[Source "ChessBase"]
[SourceQuality "1"]
[TimeControl "180+2"]

1. d4 {[%emt 0:00:01]} Nf6 {[%emt 0:00:01]} 2. Bg5 {[%emt 0:00:01]} g6 {[%emt 0:00:01]} 3. Bxf6 {[%emt 0:00:04]} exf6 {[%emt 0:00:02]} 4. c4 {[%emt 0:00:03]} d5 {[%emt 0:00:01]} 5. e3 {[%emt 0:00:07]} dxc4 {[%emt 0:00:06]} 6. Bxc4 {[%emt 0:00:03]} Bd6 {[%emt 0:00:02]} 7. Nc3 {[%emt 0:00:03]} Nd7 {[%emt 0:00:07]} 8. h4 {[%emt 0:00:02]} h5 {[%emt 0:00:01]} 9. Qc2 {[%emt 0:00:04]} c6 {[%emt 0:00:04]} 10. Nf3 {[%emt 0:00:06]} Nb6 {[%emt 0:00:01]} 11. Bb3 {[%emt 0:00:02]} Bf5 {[%emt 0:00:03]} 12. Qe2 {[%emt 0:00:02]} O-O {[%emt 0:00:10]} 13. Bc2 {[%emt 0:00:14]} Bg4 {[%emt 0:00:08]} 14. O-O-O {[%emt 0:00:08]} Nd5 {[%emt 0:00:05]} 15. Nxd5 {[%emt 0:00:13]} cxd5 {[%emt 0:00:02]} 16. Kb1 {[%emt 0:00:02]} Qd7 {[%emt 0:00:20]} 17. Bd3 {[%emt 0:00:04]} a6 {[%emt 0:00:11]} 18. Rc1 {[%emt 0:00:03]} Rfc8 {[%emt 0:00:03]} 19. Rc2 {[%emt 0:00:20]} Rxc2 {[%emt 0:00:02]} 20. Qxc2 {[%emt 0:00:02]} Rc8 {[%emt 0:00:05]} 21. Qd2 {[%emt 0:00:04]} Kg7 {[%emt 0:00:20]} 22. Ne1 {[%emt 0:00:14]} Bf5 {[%emt 0:00:19]} 23. Bxf5 {[%emt 0:00:09]} Qxf5+ {[%emt 0:00:01]} 24. Nd3 {[%emt 0:00:01]} Bb4 {[%emt 0:00:05]} 25. Qe2 {[%emt 0:00:01]} a5 {[%emt 0:00:06]} 26. Rd1 {[%emt 0:00:06]} Bd6 {[%emt 0:00:05]} 27. g3 {[%emt 0:00:20]} Rc4 {[%emt 0:00:14]} 28. a3 {[%emt 0:00:14]} b5 {[%emt 0:00:02]} 29. Re1 {[%emt 0:00:06]} b4 {[%emt 0:00:04]} 30. axb4 {[%emt 0:00:04]} axb4 {[%emt 0:00:08]} 31. Qd1 {[%emt 0:00:10]} Qd7 {[%emt 0:00:14]} 32. Qb3 {[%emt 0:00:03]} Qb5 {[%emt 0:00:07]} 33. Rd1 {[%emt 0:00:02]} Qa5 {[%emt 0:00:10]} 34. Rc1 {[%emt 0:00:03]} Qa6 {[%emt 0:00:04]} 35. Rd1 {[%emt 0:00:06]} Qb5 {[%emt 0:00:03]} 36. Rc1 {[%emt 0:00:03]} g5 {[%emt 0:00:14]} 37. Rh1 {[%emt 0:00:09]} g4 {[%emt 0:00:02]} 38. Rc1 {[%emt 0:00:09]} Kg6 {[%emt 0:00:11]} 39. Re1 {[%emt 0:00:06]} Kg7 {[%emt 0:00:03]} 40. Rd1 {[%emt 0:00:02]} Qa6 {[%emt 0:00:04]} 41. Rd2 {[%emt 0:00:03]} Qb5 {[%emt 0:00:03]} 42. Rd1 {[%emt 0:00:01]} Rc6 {[%emt 0:00:02]} 43. Rc1 {[%emt 0:00:04]} Rxc1+ {[%emt 0:00:02]} 44. Nxc1 {[%emt 0:00:05]} Qc4 {[%emt 0:00:05]} 45. Qc2 {[%emt 0:00:04]} Qf1 {[%emt 0:00:05]} 46. Ka2 {[%emt 0:00:05]} Qa6+ {[%emt 0:00:02]} 47. Kb1 {[%emt 0:00:01]} Qf1 {[%emt 0:00:01]} 48. b3 {[%emt 0:00:06]} Kf8 {[%emt 0:00:03]} 49. Kb2 {[%emt 0:00:01]} Kg8 {[%emt 0:00:02]} 50. Nd3 {[%emt 0:00:01]} Kg7 {[%emt 0:00:03]} 51. Nc5 {[%emt 0:00:01]} Bxc5 {[%emt 0:00:01]} 52. dxc5 {[%emt 0:00:01]} Qa6 {[%emt 0:00:01]} 53. c6 {[%emt 0:00:01]} Qa3+ {[%emt 0:00:02]} 54. Kb1 {[%emt 0:00:01]} Qa8 {[%emt 0:00:01]} 55. c7 {[%emt 0:00:01]} Qc8 {[%emt 0:00:01]} 56. Kb2 {[%emt 0:00:02]} Kf8 {[%emt 0:00:02]} 57. Qc5+ {[%emt 0:00:03]} Ke8 {[%emt 0:00:01]} 58. Qd6 {[%emt 0:00:01]} Qd7 {[%emt 0:00:03]} 59. Qb6 {[%emt 0:00:01]} Qc8 {[%emt 0:00:01]} 60. Qc6+ {[%emt 0:00:03]} Ke7 {[%emt 0:00:01]} 61. Kc1 {[%emt 0:00:01]} f5 {[%emt 0:00:04]} 62. Kd2 {[%emt 0:00:01]} f4 {[%emt 0:00:04]} 63. gxf4 {[%emt 0:00:02]} Kf8 {[%emt 0:00:02]} 64. Kd3 {[%emt 0:00:06]} Kg7 {[%emt 0:00:02]} 65. Kd4 {[%emt 0:00:01]} g3 {[%emt 0:00:04]} 66. fxg3 {[%emt 0:00:02]} f6 {[%emt 0:00:01]} 67. Kxd5 {[%emt 0:00:02]} Qf5+ {[%emt 0:00:01]} 68. Kd6 {[%emt 0:00:01]} Qd3+ {[%emt 0:00:02]} 69. Qd5 {[%emt 0:00:03]} Qa6+ {[%emt 0:00:01]} 70. Kd7 {[%emt 0:00:01]} Qa7 {[%emt 0:00:02]} 71. Qd4 {[%emt 0:00:05]} Qb7 {[%emt 0:00:01]} 72. Kd8 {[%emt 0:00:01]} Kf7 {[%emt 0:00:06]} 73. Qd7+ {[%emt 0:00:01]} Kg6 {[%emt 0:00:01]} 74. c8=Q {[%emt 0:00:05]} Qb6+ {[%emt 0:00:01]} 75. Qcc7 {[%emt 0:00:02]} 1-0